fUSD/lending_fUSD_20260123
["ID","MTS","AMOUNT","RATE_DAILY","PERIOD"]
[403151177,1769207435054,-540.06227295,0.000179,2]
[403151178,1769207435064,-2539.0,0.000179,2]
[403151179,1769207435074,-250.0,0.000179,2]
[403151180,1769207435083,-200.0,0.00017918,2]
[403151181,1769207435093,-2000.0,0.00017919,2]
[403151182,1769207435102,-2000.0,0.00017919,2]
[403151183,1769207435111,-2000.0,0.00017919,2]
[403151184,1769207435124,-2000.0,0.00017919,2]
[403151185,1769207435134,-2000.0,0.00017919,2]
[403151186,1769207435144,-1276.222,0.00017919,2]
[403151187,1769207435154,-472.55289874,0.0001792,2]
[403151188,1769207435163,-1000.0,0.0001793,2]
[403151189,1769207435172,-1000.0,0.0001793,2]
[403151190,1769207435180,-566.84,0.00017946,2]
[403151191,1769207435191,-400.0,0.0001797,2]
[403151192,1769207435200,-700.0,0.0001797,2]
[403151193,1769207435209,-400.0,0.0001797,2]
[403151194,1769207435218,-700.0,0.0001797,2]
[403151195,1769207435228,-797.30389429,0.0001797,2]
[403151196,1769207435238,-700.0,0.0001797,2]
[403151197,1769207435248,-1102.43614103,0.0001797,2]
[403151198,1769207435259,-1000.0,0.0001797,2]
[403151199,1769207435269,-1000.0,0.0001797,2]
[403151200,1769207435279,-1000.0,0.0001797,2]
[403151201,1769207435288,-1000.0,0.0001797,2]
[403151202,1769207435297,-1000.0,0.0001797,2]
[403151203,1769207435308,-876.427,0.0001797,2]
[403151204,1769207435317,-151.0,0.00017997,2]
[403151205,1769207435327,-150.0,0.00017999,2]
[403151206,1769207435336,-127071.2767255,0.00017999,2]
[403151207,1769207435345,-28353.4343261,0.00017999,2]
[403151208,1769207435354,-8101.0849288,0.00017999,2]
[403151209,1769207435364,-300.0,0.00017999,2]
[403151210,1769207435375,-155.0,0.00017999,2]
[403151211,1769207435385,-218348.7054057,0.00017999,2]
[403151212,1769207435394,-300.0,0.00017999,2]
[403151213,1769207435404,-300.0,0.00017999,2]
[403151214,1769207435413,-89482.84697861,0.00018,2]
[403151215,1769207435778,-609.8984744,0.00018,2]
[403151216,1769207438070,-2553.98606414,0.00016893,2]
[403151217,1769207438130,-942.2,0.00016893,2]
[403151218,1769207438141,-228016.9690847,0.00016893,2]
[403151219,1769207438298,-408.36251769,0.00016893,2]
[403151437,1769207440430,-910.1,0.00016893,2]
[403151440,1769207440446,-767168.38233347,0.00016893,2]
[403151442,1769207440455,-3424547.75734176,0.00018,2]
[403151446,1769207440485,-3436.85276673,0.00018,2]
[403151484,1769207440839,-485.78693407,0.000179,2]
[403151486,1769207440848,-793.49106443,0.00018,2]
[403151489,1769207440859,-640.58000002,0.00018,2]
[403151594,1769207445080,-500.0,0.00018,2]
[403151595,1769207445466,-400.0,0.00018,2]
[403151685,1769207446627,-19814.407,0.00018,2]
[403151688,1769207446638,-1862.69053301,0.00018,2]
[403151692,1769207446667,-4900.0,0.00018,2]
[403152170,1769207486298,5533.0,0.000135,5]
[403152171,1769207486738,5533.0,0.000132,3]
[403152172,1769207486894,2940.36728186,0.00013,2]
[403152173,1769207486917,10000.01,0.00013,2]
[403152174,1769207486938,10000.01,0.00013,2]
[403152175,1769207486960,10000.01,0.00013,2]
[403152176,1769207486981,10000.01,0.00013,2]
[403152177,1769207487003,4114.59271814,0.00013,2]
[403152178,1769207738902,-1059.12918871,0.00015889,2]
[403152179,1769207739012,-140.87081129,0.00015889,2]
[403152180,1769207739040,-300.0,0.00015889,2]
[403152181,1769207763477,98.81948755,0.00015889,2]
[403152184,1769208296131,524.99,0.0001137,2]
[403152185,1769208296382,524.99,0.0001137,2]
[403152186,1769208296672,524.99,0.0001137,2]
[403152187,1769208296914,524.99,0.0001137,2]
[403152188,1769208411510,-244.92495331,0.000137,2]
[403152208,1769208632342,-287.0,0.000137,2]
[403152211,1769208632354,-1378.83566915,0.000137,2]
[403152212,1769208632364,-250.0,0.0001507,2]
[403152213,1769208632373,-250.0,0.0001507,2]
[403152214,1769208632383,-696.269,0.00015572,2]
[403152215,1769208632392,-156.515,0.00015572,2]
[403152216,1769208632402,-166.66,0.00015613,2]
[403152217,1769208632411,-202.20553363,0.00015737,4]
[403152218,1769208632425,-25660.91783284,0.0001579,2]
[403152219,1769208632436,-19244.76983058,0.0001579,2]
[403152225,1769208638503,-500.0,0.00015789,2]
[403152226,1769208638512,-500.0,0.00015789,2]
[403152227,1769208638521,-2.67218354,0.00015789,2]
[403152236,1769208640439,-497.32781646,0.00015789,2]
[403152237,1769208640448,-602.09674481,0.00015789,2]
[403152238,1769208640457,-955094.31233658,0.0001579,2]
[403152239,1769208640466,-504.38,0.0001588,3]
[403152240,1769208640475,-300.0,0.00015888,2]
[403152241,1769208640484,-300.0,0.00015888,2]
[403152242,1769208640496,-1200.0,0.00015888,2]
[403152243,1769208640505,-166.66,0.00015942,2]
[403152244,1769208640514,-152.57188845,0.00015969,2]
[403152245,1769208640523,-200.28,0.00016069,2]
[403152246,1769208640533,-152.57188845,0.00016245,2]
[403152247,1769208640542,-166.66,0.0001627,2]
[403152248,1769208640551,-500.0,0.00016438,2]
[403152249,1769208640560,-500.0,0.00016438,2]
[403152250,1769208640568,-250.0,0.00016438,2]
[403152251,1769208640578,-151.0,0.00016438,2]
[403152252,1769208640587,-152.57188845,0.00016521,2]
[403152253,1769208640598,-166.66,0.00016599,2]
[403152254,1769208640607,-287.0,0.00016707,2]
[403152255,1769208640616,-491.0,0.00016707,2]
[403152256,1769208640625,-164.35,0.00016708,2]
[403152257,1769208640633,-200.0,0.00016731,2]
[403152258,1769208640642,-1101.0,0.00016738,2]
[403152259,1769208640651,-152.57188845,0.00016797,2]
[403152260,1769208640660,-1411.25,0.00016829,2]
[403152261,1769208640669,-935.68,0.00016854,2]
[403152262,1769208640678,-2022.17,0.00016882,2]
[403152263,1769208640687,-166.66,0.00016928,2]
[403152264,1769208640697,-198.87,0.00016953,2]
[403152265,1769208640706,-167.0,0.00017054,2]
[403152266,1769208640715,-152.57188845,0.00017072,2]
[403152267,1769208640724,-1002.58,0.00017099,2]
[403152268,1769208640732,-322.6107,0.00017099,2]
[403152269,1769208640742,-500.0,0.00017099,2]
[403152270,1769208640752,-500.0,0.00017099,2]
[403152271,1769208640763,-500.0,0.00017099,2]
[403152272,1769208640773,-500.0,0.00017099,2]
[403152273,1769208640782,-500.0,0.00017099,2]
[403152274,1769208640792,-854.2589148,0.00017099,2]
[403152275,1769208640802,-500.0,0.00017099,2]
[403152276,1769208640810,-500.0,0.00017099,2]
[403152277,1769208640821,-500.0,0.00017099,2]
[403152278,1769208640830,-174.61919141,0.00017099,2]
[403152279,1769208640840,-500.0,0.00017099,2]
[403152280,1769208640849,-500.0,0.00017099,2]
[403152281,1769208640858,-500.0,0.00017099,2]
[403152282,1769208640868,-500.0,0.00017099,2]
[403152283,1769208640878,-500.0,0.00017099,2]
[403152284,1769208640887,-2468.0,0.00017099,2]
[403152285,1769208640896,-500.0,0.00017099,2]
[403152286,1769208640905,-500.0,0.00017099,2]
[403152287,1769208640915,-500.0,0.00017099,2]
[403152288,1769208640929,-500.0,0.00017099,2]
[403152289,1769208640938,-500.0,0.00017099,2]
[403152290,1769208640948,-500.0,0.00017099,2]
[403152291,1769208640956,-500.0,0.00017099,2]
[403152292,1769208640966,-500.0,0.00017099,2]
[403152293,1769208640975,-500.0,0.00017099,2]
[403152294,1769208640985,-578.20924308,0.00017099,2]
[403152295,1769208640996,-151.0,0.00017099,2]
[403152296,1769208641004,-151.0,0.00017099,2]
[403152297,1769208641014,-151.0,0.00017099,2]
[403152298,1769208641024,-151.0,0.00017099,2]
[403152299,1769208641034,-151.0,0.00017099,2]
[403152300,1769208641043,-151.0,0.00017099,2]
[403152301,1769208641052,-151.0,0.00017099,2]
[403152302,1769208641062,-151.0,0.00017099,2]
[403152303,1769208641072,-151.0,0.00017099,2]
[403152304,1769208641084,-151.0,0.00017099,2]
[403152305,1769208641094,-151.0,0.00017099,2]
[403152306,1769208641106,-165.42834379,0.000171,2]
[403152307,1769208641119,-297.47324781,0.000171,2]
[403152308,1769208641128,-166.66,0.00017256,2]
[403152309,1769208641137,-152.57188845,0.00017348,2]
[403152310,1769208641147,-420.0,0.00017373,2]
[403152311,1769208641157,-420.0,0.00017373,2]
[403152312,1769208641165,-1002.58,0.00017373,2]
[403152313,1769208641175,-1680.0,0.0001746,2]
[403152314,1769208641184,-152.57188845,0.00017624,2]
[403152315,1769208641193,-500.0,0.00017646,2]
[403152316,1769208641203,-500.0,0.00017646,2]
[403152317,1769208641213,-1002.58,0.00017647,2]
[403152318,1769208641223,-885.86649465,0.00017647,2]
[403152319,1769208641232,-181.08010149,0.00017647,2]
[403152320,1769208641241,-1411.25,0.00017671,2]
[403152321,1769208641250,-500.0,0.00017671,2]
[403152322,1769208641259,-227.55062227,0.00017671,2]
[403152323,1769208641269,-150.0,0.00017671,2]
[403152324,1769208641278,-150.0,0.00017671,2]
[403152325,1769208641288,-500.0,0.00017671,2]
[403152326,1769208641297,-150.0,0.00017671,2]
[403152327,1769208641306,-151.07703537,0.00017671,2]
[403152328,1769208641316,-158.36185847,0.00017679,2]
[403152329,1769208641326,-500.0,0.00017701,2]
[403152330,1769208641335,-500.0,0.00017701,2]
[403152331,1769208641344,-500.0,0.00017726,2]
[403152332,1769208641353,-172.45367867,0.00017726,2]
[403152333,1769208641362,-150.0,0.00017726,2]
[403152334,1769208641371,-150.0,0.00017726,2]
[403152335,1769208641380,-500.0,0.00017726,2]
[403152336,1769208641389,-500.0,0.00017756,2]
[403152337,1769208641398,-500.0,0.00017756,2]
[403152338,1769208641408,-2210.9256468,0.00017775,2]
[403152339,1769208641420,-27244.4585486,0.00017775,2]
[403152340,1769208641429,-877.0,0.00017775,2]
[403152341,1769208641437,-18810.8718263,0.00017776,2]
[403152342,1769208641447,-500.0,0.00017781,2]
[403152343,1769208641458,-157.15309479,0.00017781,2]
[403152344,1769208641467,-500.0,0.00017781,2]
[403152345,1769208641476,-500.0,0.0001781,2]
[403152346,1769208641485,-500.0,0.0001781,2]
[403152347,1769208641495,-353.08533,0.0001782,2]
[403152348,1769208641505,-353.08534,0.0001782,2]
[403152349,1769208641515,-500.0,0.00017835,2]
[403152350,1769208641525,-500.0,0.00017835,2]
[403152351,1769208641536,-500.0,0.00017865,2]
[403152352,1769208641545,-500.0,0.00017865,2]
[403152353,1769208641554,-500.0,0.0001789,2]
[403152354,1769208641563,-281.84582328,0.0001789,2]
[403152355,1769208641572,-198.87,0.00017895,2]
[403152356,1769208641581,-21002.3491564,0.000179,3]
[403152357,1769208641590,-152.57188845,0.000179,2]
[403152358,1769208641599,-1833.0,0.000179,2]
[403152359,1769208641608,-500.0,0.0001792,2]
[403152360,1769208641617,-500.0,0.0001792,2]
[403152361,1769208641626,-1002.58,0.00017921,2]
[403152362,1769208641635,-150.0,0.00017973,2]
[403152363,1769208641644,-150.0,0.00017973,2]
[403152364,1769208641653,-500.0,0.00017975,2]
[403152365,1769208641662,-500.0,0.00017975,2]
[403152366,1769208641671,-167.0,0.00017992,2]
[403152367,1769208641681,-1008.6966,0.00017999,2]
[403152368,1769208641690,-155.0,0.00017999,2]
[403152369,1769208641699,-300.0,0.00017999,2]
[403152370,1769208641708,-300.0,0.00017999,2]
[403152371,1769208641716,-3313465.31629558,0.00018,2]
[403152372,1769208641880,-265.1286,0.00018,2]
[403152385,1769208644999,-27.21388373,0.00018,2]
[403152387,1769208645552,-447184.0909209,0.00018,2]
[403152388,1769208645562,-154346.16234344,0.00018,2]
[403152398,1769208646843,-1929.205904,0.00018,2]
[403152411,1769208687732,5533.0,0.000135,5]
[403152412,1769209345387,500.0,0.000176,30]
[403152413,1769209346106,500.0,0.00013,2]
[403152414,1769209349216,500.0,0.000176,30]
[403152415,1769209646401,7400.05,0.00012322,2]
[403152416,1769209646425,5069.63,0.00012322,2]
[403152417,1769209715753,187.43,0.0001207,2]
[403152418,1769209768152,-5325.854002,0.000137,2]
[403152425,1769209831479,-390.37271931,0.000137,2]
[403152426,1769209831548,-16.05514898,0.000137,2]
[403152427,1769209831558,-195.0,0.0001507,2]
[403152428,1769209831567,-150.0,0.00015125,2]
[403152429,1769209831576,-557.015,0.00015474,2]
[403152430,1769209831586,-43.72700756,0.00015474,2]
[403152431,1769209831608,-112.78830181,0.00015474,2]
[403152432,1769209831617,-234.66,0.0001568,2]
[403152433,1769209831626,-234.66,0.0001568,2]
[403152434,1769209831636,-234.66,0.0001568,2]
[403152435,1769209831645,-234.66,0.0001568,2]
[403152436,1769209831655,-234.66,0.0001568,2]
[403152437,1769209831664,-177.23835,0.00015687,2]
[403152438,1769209831676,-1200.0,0.00015689,2]
[403152439,1769209831685,-7209.94915645,0.0001569,2]
[403152452,1769209837628,-457.13156376,0.0001569,2]
[403152453,1769209840305,-8272.42405905,0.0001569,2]
[403152454,1769209840317,-984060.49522074,0.0001569,2]
[403152455,1769209840326,-362.5504237,0.00015704,2]
[403152456,1769209840335,-504.38,0.0001578,3]
[403152457,1769209840344,-300.0,0.00015787,2]
[403152458,1769209840353,-531.48950376,0.00015789,2]
[403152459,1769209840362,-500.0,0.00015789,2]
[403152460,1769209840371,-500.0,0.00015789,2]
[403152461,1769209840380,-500.0,0.00015789,2]
[403152462,1769209840390,-500.0,0.00015789,2]
[403152463,1769209840399,-500.0,0.00015789,2]
[403152464,1769209840409,-500.0,0.00015789,2]
[403152465,1769209840418,-500.0,0.00015789,2]
[403152466,1769209840427,-500.0,0.00015789,2]
[403152467,1769209840436,-156.43,0.00015817,2]
[403152468,1769209840445,-1868.0,0.00015818,2]
[403152469,1769209840454,-390.0,0.00015818,2]
[403152470,1769209840463,-267.78,0.00015849,2]
[403152471,1769209840474,-681.30143961,0.00015849,2]
[403152472,1769209840485,-218.6816772,0.00015849,2]
[403152473,1769209840494,-629.0,0.00015885,2]
[403152474,1769209840503,-500.0,0.00015889,2]
[403152475,1769209840512,-500.0,0.00015889,3]
[403152476,1769209840521,-500.0,0.00015889,4]
[403152477,1769209840531,-500.0,0.00015889,5]
[403152478,1769209840540,-611.75,0.00015918,2]
[403152479,1769209840549,-651.0,0.00015941,2]
[403152480,1769209840558,-362.55042366,0.00015948,2]
[403152481,1769209840567,-1184.8863827,0.00015988,2]
[403152482,1769209840576,-1173.0,0.00016007,2]
[403152483,1769209840585,-166.01,0.0001601,2]
[403152484,1769209840595,-362.55042366,0.00016192,2]
[403152485,1769209840604,-1184.8863827,0.00016227,2]
[403152486,1769209840613,-2033.0,0.00016233,2]
[403152487,1769209840623,-297.91826951,0.00016244,2]
[403152488,1769209840632,-340.4780223,0.00016244,2]
[403152489,1769209840641,-362.55042366,0.00016436,2]
[403152490,1769209840650,-151.0,0.00016438,2]
[403152491,1769209840659,-1184.8863827,0.00016466,2]
[403152492,1769209840668,-611.75,0.00016515,2]
[403152493,1769209840677,-13939.71,0.0001656,2]
[403152494,1769209840686,-1000.0,0.00016616,2]
[403152495,1769209840696,-362.55042366,0.0001668,2]
[403152496,1769209840706,-1184.8863827,0.00016705,2]
[403152497,1769209840715,-362.55042366,0.00016924,2]
[403152498,1769209840725,-1297.73,0.00016935,2]
[403152499,1769209840736,-1184.8863827,0.00016944,2]
[403152500,1769209840746,-250.0,0.00017,2]
[403152501,1769209840756,-150.0,0.00017036,2]
[403152502,1769209840765,-287.0,0.00017039,2]
[403152503,1769209840776,-287.0,0.00017076,2]
[403152504,1769209840787,-250.0,0.00017085,2]
[403152505,1769209840796,-6851.79839178,0.00017099,2]
[403152506,1769209840805,-1129.64,0.00017099,2]
[403152507,1769209840814,-386.78422461,0.00017099,2]
[403152508,1769209840825,-322.6107,0.00017099,2]
[403152509,1769209840834,-854.2589148,0.00017099,2]
[403152510,1769209840843,-500.0,0.00017099,2]
[403152511,1769209840854,-500.0,0.00017099,2]
[403152512,1769209840863,-500.0,0.00017099,2]
[403152513,1769209840872,-500.0,0.00017099,2]
[403152514,1769209840881,-500.0,0.00017099,2]
[403152515,1769209840890,-500.0,0.00017099,2]
[403152516,1769209840900,-500.0,0.00017099,2]
[403152517,1769209840909,-578.20924308,0.00017099,2]
[403152518,1769209840918,-500.0,0.00017099,2]
[403152519,1769209840927,-500.0,0.00017099,2]
[403152520,1769209840936,-500.0,0.00017099,2]
[403152521,1769209840945,-500.0,0.00017099,2]
[403152522,1769209840954,-2468.0,0.00017099,2]
[403152523,1769209840963,-500.0,0.00017099,2]
[403152524,1769209840972,-174.61919141,0.00017099,2]
[403152525,1769209840981,-500.0,0.00017099,2]
[403152526,1769209840991,-500.0,0.00017099,2]
[403152527,1769209841001,-500.0,0.00017099,2]
[403152528,1769209841010,-500.0,0.00017099,2]
[403152529,1769209841020,-500.0,0.00017099,2]
[403152530,1769209841028,-500.0,0.00017099,2]
[403152531,1769209841038,-500.0,0.00017099,2]
[403152532,1769209841047,-500.0,0.00017099,2]
[403152533,1769209841056,-500.0,0.00017099,2]
[403152534,1769209841066,-500.0,0.00017099,2]
[403152535,1769209841075,-500.0,0.00017099,2]
[403152536,1769209841084,-151.0,0.00017099,2]
[403152537,1769209841094,-151.0,0.00017099,2]
[403152538,1769209841103,-151.0,0.00017099,2]
[403152539,1769209841112,-209.40437684,0.00017099,2]
[403152540,1769209841121,-151.0,0.00017099,2]
[403152541,1769209841130,-151.0,0.00017099,2]
[403152542,1769209841140,-151.0,0.00017099,2]
[403152543,1769209841150,-151.0,0.00017099,2]
[403152544,1769209841159,-151.0,0.00017099,2]
[403152545,1769209841168,-151.0,0.00017099,2]
[403152546,1769209841177,-151.0,0.00017099,2]
[403152547,1769209841187,-151.0,0.00017099,2]
[403152548,1769209841196,-611.75,0.00017112,2]
[403152549,1769209841205,-362.55042366,0.00017168,2]
[403152550,1769209841214,-1184.8863827,0.00017183,2]
[403152551,1769209841224,-287.0,0.00017206,2]
[403152552,1769209841233,-1680.0,0.00017245,2]
[403152553,1769209841242,-420.0,0.00017264,2]
[403152554,1769209841251,-287.0,0.00017264,2]
[403152555,1769209841260,-168.0,0.00017297,2]
[403152556,1769209841270,-287.0,0.00017321,2]
[403152557,1769209841280,-287.0,0.00017345,2]
[403152558,1769209841289,-1129.64,0.00017373,2]
[403152559,1769209841298,-287.0,0.00017385,2]
[403152560,1769209841307,-362.55042366,0.00017412,2]
[403152561,1769209841316,-1184.8863827,0.00017422,2]
[403152562,1769209841325,-287.0,0.00017447,2]
[403152563,1769209841334,-1203.0,0.000175,2]
[403152564,1769209841343,-916.0,0.000175,2]
[403152565,1769209841352,-2441.0,0.0001757,2]
[403152566,1769209841362,-4829.0,0.0001757,2]
[403152567,1769209841375,-567.0,0.0001757,2]
[403152568,1769209841385,-150.66,0.00017605,2]
[403152569,1769209841395,-150.0,0.00017605,2]
[403152570,1769209841405,-150.0,0.00017605,2]
[403152571,1769209841414,-500.0,0.00017646,2]
[403152572,1769209841424,-500.0,0.00017646,2]
[403152573,1769209841433,-500.0,0.00017646,2]
[403152574,1769209841442,-500.0,0.00017646,2]
[403152575,1769209841451,-500.0,0.00017646,2]
[403152576,1769209841461,-150.0,0.00017646,2]
[403152577,1769209841470,-1129.64,0.00017647,2]
[403152578,1769209841479,-885.86649465,0.00017647,2]
[403152579,1769209841488,-181.08010149,0.00017647,2]
[403152580,1769209841497,-174.24959493,0.00017647,2]
[403152581,1769209841507,-362.55042366,0.00017656,2]
[403152582,1769209841516,-1184.8863827,0.00017661,2]
[403152583,1769209841525,-158.36185847,0.00017668,2]
[403152584,1769209841534,-500.0,0.00017701,2]
[403152585,1769209841543,-500.0,0.00017701,2]
[403152586,1769209841552,-500.0,0.00017701,2]
[403152587,1769209841562,-500.0,0.00017701,2]
[403152588,1769209841571,-500.0,0.00017701,2]
[403152589,1769209841580,-611.75,0.00017709,2]
[403152590,1769209841590,-500.0,0.00017715,2]
[403152591,1769209841599,-227.55062227,0.00017715,2]
[403152592,1769209841607,-150.0,0.00017715,2]
[403152593,1769209841617,-150.0,0.00017715,2]
[403152594,1769209841626,-150.0,0.00017715,2]
[403152595,1769209841635,-500.0,0.00017715,2]
[403152596,1769209841644,-151.07703537,0.00017715,2]
[403152597,1769209841654,-168.0,0.00017743,2]
[403152598,1769209841663,-500.0,0.00017756,2]
[403152599,1769209841672,-500.0,0.00017756,2]
[403152600,1769209841682,-500.0,0.00017756,2]
[403152601,1769209841691,-500.0,0.00017756,2]
[403152602,1769209841700,-500.0,0.00017756,2]
[403152603,1769209841710,-500.0,0.0001777,2]
[403152604,1769209841719,-172.45367867,0.0001777,2]
[403152605,1769209841728,-150.0,0.0001777,2]
[403152606,1769209841737,-500.0,0.0001777,2]
[403152607,1769209841747,-150.0,0.0001777,2]
[403152608,1769209841756,-168.0,0.00017799,2]
[403152609,1769209841765,-500.0,0.0001781,2]
[403152610,1769209841775,-500.0,0.0001781,2]
[403152611,1769209841785,-500.0,0.0001781,2]
[403152612,1769209841794,-500.0,0.0001781,2]
[403152613,1769209841803,-500.0,0.0001781,2]
[403152614,1769209841813,-353.08533,0.0001782,2]
[403152615,1769209841823,-353.08534,0.0001782,2]
[403152616,1769209841839,-500.0,0.00017825,2]
[403152617,1769209841860,-157.15309479,0.00017825,2]
[403152618,1769209841882,-500.0,0.00017825,2]
[403152619,1769209841892,-500.0,0.00017865,2]
[403152620,1769209841902,-500.0,0.00017865,2]
[403152621,1769209841911,-500.0,0.00017865,2]
[403152622,1769209841921,-500.0,0.00017865,2]
[403152623,1769209841930,-500.0,0.00017865,2]
[403152624,1769209841939,-500.0,0.00017879,2]
[403152625,1769209841948,-500.0,0.00017879,2]
[403152626,1769209841957,-12217.4579,0.000179,2]
[403152627,1769209841966,-1000.0,0.000179,2]
[403152628,1769209841976,-1184.8863827,0.000179,2]
[403152629,1769209841985,-15270.0672871,0.000179,3]
[403152630,1769209841994,-362.55042366,0.000179,2]
[403152631,1769209842003,-500.0,0.0001792,2]
[403152632,1769209842012,-500.0,0.0001792,2]
[403152633,1769209842021,-500.0,0.0001792,2]
[403152634,1769209842030,-500.0,0.0001792,2]
[403152635,1769209842039,-200.0,0.0001792,2]
[403152636,1769209842048,-1129.64,0.00017921,2]
[403152637,1769209842057,-500.0,0.00017934,2]
[403152638,1769209842066,-281.84582328,0.00017934,2]
[403152639,1769209842075,-500.0,0.00017975,2]
[403152640,1769209842084,-500.0,0.00017975,2]
[403152641,1769209842093,-500.0,0.00017975,2]
[403152642,1769209842103,-500.0,0.00017975,2]
[403152643,1769209842112,-76046.9863518,0.00017996,2]
[403152644,1769209842121,-16514.6617566,0.00017996,2]
[403152645,1769209842130,-21403.1658448,0.00017996,2]
[403152646,1769209842139,-4033.1067015,0.00017996,2]
[403152647,1769209842149,-155.0,0.00017999,2]
[403152648,1769209842159,-406.810913,0.00017999,2]
[403152649,1769209842168,-300.0,0.00017999,2]
[403152650,1769209842178,-300.0,0.00017999,2]
[403152651,1769209842189,-500.0,0.00017999,6]
[403152652,1769209842200,-500.0,0.00017999,7]
[403152653,1769209842210,-500.0,0.00017999,8]
[403152654,1769209842220,-500.0,0.00017999,9]
[403152655,1769209842231,-500.0,0.00017999,10]
[403152656,1769209842241,-500.0,0.00017999,11]
[403152657,1769209842250,-500.0,0.00017999,12]
[403152658,1769209842259,-500.0,0.00017999,13]
[403152659,1769209842268,-500.0,0.00017999,14]
[403152660,1769209842277,-500.0,0.00017999,15]
[403152661,1769209842286,-500.0,0.00017999,16]
[403152662,1769209842296,-500.0,0.00017999,17]
[403152663,1769209842305,-500.0,0.00017999,18]
[403152664,1769209842314,-568.30517394,0.00017999,19]
[403152665,1769209842325,-300.0,0.00017999,2]
[403152666,1769209842334,-3138055.31952331,0.00018,2]
[403152667,1769209842505,-6025.0,0.00018,2]
[403152750,1769209843721,-479.43468256,0.00018,2]
[403152752,1769209843732,-900.6611816,0.00018,2]
[403152754,1769209843742,-971.81328667,0.00018,2]
[403152761,1769209843799,-330.28996395,0.00018,2]
[403152763,1769209843811,-684.77400246,0.00018,2]
[403152765,1769209843822,-288.64879627,0.00018,2]
[403152767,1769209843832,-17507.54073792,0.00018,2]
[403152773,1769209843882,-11.47140144,0.00018,2]
[403152781,1769209843942,-5642.70196642,0.00018,2]
[403152783,1769209843953,-388.14500003,0.00018,2]
[403152934,1769209845467,-6517.05713229,0.00018,2]
[403152945,1769209845558,-3908.06368472,0.0001757,2]
[403152947,1769209845570,-2658.93631528,0.0001757,2]
[403152949,1769209845579,-13555.28830369,0.00018,2]
[403152952,1769209845590,-1292.52388058,0.00018,2]
[403153864,1769210734934,4742.95,0.0001,2]
[403153865,1769210734956,529.51458787,0.0001,2]
[403153866,1769210849331,977.28659546,0.000176,30]
[403153898,1769211032125,-1200.0,0.00014999,2]
[403153899,1769211032135,-246.51326682,0.00014999,2]
[403153900,1769211032165,-53.48673318,0.00014999,2]
[403153901,1769211032176,-246.51326682,0.00014999,2]
[403153902,1769211032188,-53.48673318,0.00014999,2]
[403153903,1769211032197,-957.70503895,0.00015,2]
[403153904,1769211032256,-375.61205078,0.00015,2]
[403153905,1769211032266,-124.38794922,0.00015,2]
[403153906,1769211032278,-8051.09744245,0.00015,2]
[403153907,1769211032289,-1089.218,0.00015376,2]
[403153908,1769211032301,-200.804,0.00015376,2]
[403153909,1769211032311,-195.0,0.00015488,2]
[403153910,1769211032320,-2133.47658083,0.00015498,2]
[403153911,1769211032331,-1088.03,0.00015517,2]
[403153912,1769211032340,-151.0,0.00015587,2]
[403153913,1769211032349,-300.0,0.00015589,2]
[403153914,1769211032358,-370.0,0.00015589,2]